bitfinex/quotes_SOLUSD_20241121
["timestamp","ask_amount","ask_price","bid_price","bid_amount"]
[1732190462725,6.39127066,239.85,239.84,10.01119036]
[1732190463049,6.39127066,239.93,239.84,11.05349036]
[1732190463211,6.39127066,239.93,239.89,9.59429036]
[1732190463413,6.39127066,239.97,239.89,9.59429036]
[1732190463610,6.39127066,239.97,239.91,9.59429036]
[1732190463830,6.39127066,239.98,239.91,9.59429036]
[1732190464230,6.39127066,239.98,239.92,3.7512]
[1732190464622,21.37793442,239.99,239.92,3.7512]
[1732190465436,6.39127066,239.99,239.92,3.7512]
[1732190465741,4.1666,240.0,239.93,14.98666376]
[1732190465742,6.39127066,239.98,239.93,14.98666376]
[1732190465946,6.39127066,239.99,239.93,14.98666376]
[1732190466837,6.39127066,239.99,239.93,18.73756376]
[1732190468219,10.55807066,239.99,239.93,18.73756376]
[1732190468421,14.98666376,239.97,239.89,14.98666376]
[1732190468631,14.98666376,239.95,239.89,3.7516]
[1732190469422,14.98666376,239.95,239.89,13.1308]
[1732190469632,21.37793442,239.97,239.89,28.11746376]
[1732190469834,6.39127066,239.97,239.91,14.98666376]
[1732190470043,6.39127066,239.98,239.93,14.98666376]
[1732190470340,6.39127066,239.99,239.93,14.98666376]
[1732190470945,25.54443442,240.01,239.93,14.98666376]
[1732190471155,14.98666376,239.99,239.91,14.98666376]
[1732190471730,21.37793442,239.99,239.91,14.98666376]
[1732190471938,6.39127066,239.98,239.92,3.7512]
[1732190472246,19.15346376,239.99,239.92,3.7512]
[1732190472247,25.54473442,239.99,239.92,3.7512]
[1732190472454,6.39127066,239.98,239.92,3.7512]
[1732190473246,6.39127066,239.98,239.91,4.28261264]
[1732190473638,19.15346376,239.99,239.91,4.28261264]
[1732190474437,6.39127066,240.0,239.93,14.98666376]
[1732190474751,6.39127066,240.01,239.95,14.98666376]
[1732190475127,6.39127066,240.02,239.97,14.98666376]
[1732190475328,4.1655,240.07,239.99,14.98666376]
[1732190475329,6.39127066,240.03,239.99,14.98666376]
[1732190475527,6.39127066,240.04,239.99,14.98666376]
[1732190475951,6.39127066,240.04,240.01,14.98666376]
[1732190476133,6.39127066,240.05,240.01,14.98666376]
[1732190476449,6.39127066,240.05,240.01,18.73636376]
[1732190478030,6.39127066,240.05,240.01,14.98666376]
[1732190479047,6.39127066,240.04,240.01,14.98666376]
[1732190479250,6.39127066,240.04,239.99,28.11186376]
[1732190480251,6.39127066,240.05,239.99,28.11186376]
[1732190480853,6.39127066,240.05,240.01,14.98666376]
[1732190481357,27.76920509,240.09,240.01,14.98666376]
[1732190481358,6.39127066,240.06,240.01,14.98666376]
[1732190481927,6.39127066,240.07,240.04,14.98666376]
[1732190482452,6.39127066,240.07,240.04,18.73596376]
[1732190482854,6.39127066,240.07,240.04,28.10936376]
[1732190483233,12.78254133,240.08,240.06,14.98666376]
[1732190483427,6.39329734,240.1,240.07,14.98666376]
[1732190483741,3.0474451,240.09,240.07,14.98666376]
[1732190483934,3.0474451,240.08,240.07,14.98666376]
[1732190484537,4.1644,240.13,240.07,14.98666376]
[1732190484743,3.04744279,240.12,240.05,14.98666376]
[1732190484945,3.04744279,240.12,240.04,11.6284916]
[1732190484946,3.04744279,240.11,240.04,7.8792916]
[1732190485145,3.04744279,240.1,240.04,7.8792916]
[1732190485346,3.04744279,240.09,240.04,7.8792916]
[1732190485546,3.04744279,240.08,240.04,7.8792916]
[1732190485751,3.04744279,240.07,240.04,11.6285916]
[1732190485960,3.04744279,240.06,240.04,11.6285916]
[1732190486146,3.04744279,240.05,240.04,11.6285916]
[1732190487555,2.96140113,240.05,240.04,11.6285916]
[1732190487753,14.98666376,240.16,240.04,11.6285916]
[1732190487960,14.98666376,240.16,240.09,14.98666376]
[1732190488339,14.98666376,240.14,240.05,14.98666376]
[1732190488662,4.164,240.15,240.05,14.98666376]
[1732190488663,14.98666376,240.12,240.05,14.98666376]
[1732190489570,14.98666376,240.12,240.05,18.73576376]
[1732190489742,14.98666376,240.16,240.07,14.98666376]
[1732190490061,4.1643,240.14,240.07,14.98666376]
[1732190490360,19.15096376,240.14,240.07,14.98666376]
[1732190490551,19.15096376,240.14,240.05,14.98666376]
[1732190490552,14.98666376,240.12,240.05,14.98666376]
[1732190491051,14.98666376,240.12,240.03,14.98666376]
[1732190491447,4.1651,240.09,240.03,14.98666376]
[1732190491758,4.1651,240.09,240.01,24.36116376]
[1732190491958,4.1651,240.09,240.01,14.98666376]
[1732190492159,14.98666376,240.08,240.01,14.98666376]
[1732190492361,14.98666376,240.06,239.97,18.73696376]
[1732190493261,14.98666376,240.06,239.97,14.98666376]
[1732190493464,6.39329734,240.05,239.97,18.73706376]
[1732190493664,10.55909734,240.05,239.97,14.98666376]
[1732190493845,4.87903296,240.04,239.96,13.1266]
[1732190494046,4.87903296,240.03,239.95,14.98666376]
[1732190494255,14.98666376,239.99,239.92,9.378]
[1732190494458,14.98666376,239.99,239.91,14.98666376]
[1732190494459,14.98666376,239.97,239.89,14.98666376]
[1732190494747,14.98666376,239.97,239.88,11.6722]
[1732190494748,14.98666376,239.95,239.88,8.3374]
[1732190494950,14.98666376,239.95,239.85,11.0999]
[1732190494951,14.98666376,239.95,239.86,3.3352]
[1732190495146,14.98666376,239.95,239.87,14.98666376]
[1732190495845,4.1677,239.94,239.87,14.98666376]
[1732190496651,6.39329734,239.9,239.87,14.98666376]
[1732190497346,6.39329734,239.9,239.86,3.3352]
[1732190497347,6.39329734,239.88,239.85,14.98666376]
[1732190498082,6.39329734,239.88,239.85,18.32196376]
[1732190498243,12.78254133,239.91,239.85,18.32196376]
[1732190498244,6.39329734,239.87,239.85,18.32196376]
[1732190499354,19.15466376,239.93,239.85,18.32196376]
[1732190499355,6.39329734,239.88,239.85,26.66046376]
[1732190499568,3.0568577,239.87,239.85,26.66046376]
[1732190499767,3.0568577,239.86,239.85,26.66046376]
[1732190500767,3.0568577,239.86,239.85,60.98744776]
[1732190501172,6.39329734,239.93,239.86,23.776884]
[1732190501346,12.78254133,239.97,239.92,11.6705]
[1732190501347,6.39329734,239.94,239.92,11.6705]
[1732190501554,6.39329734,239.96,239.93,14.98666376]
[1732190501764,6.39329734,239.97,239.95,14.98666376]
[1732190501966,6.39329734,239.96,239.95,14.98666376]
[1732190502266,6.39329734,239.97,239.95,14.98666376]
[1732190502857,6.39329734,239.98,239.96,3.3338]
[1732190503172,6.42336658,239.98,239.97,14.98666376]
[1732190503350,6.42336658,239.99,239.97,0.53492058]
[1732190503777,6.42336658,240.0,239.97,0.53492058]
[1732190504276,6.42336658,240.01,239.97,0.53492058]
[1732190504575,6.42336658,240.01,239.96,3.3338]
[1732190504874,14.98666376,240.0,239.92,8.3361]
[1732190505050,6.42336658,239.97,239.92,8.3361]
[1732190506075,6.42336658,239.97,239.94,14.98666376]
[1732190506281,6.42336658,240.0,239.96,14.98666376]
[1732190506649,6.42336658,240.01,239.96,14.98666376]
[1732190507045,6.42336658,240.02,239.96,14.98666376]
[1732190507464,6.42336658,240.02,240.01,14.98666376]
[1732190507675,6.42336658,240.06,240.01,14.98666376]
[1732190507855,6.42336658,240.06,240.03,14.98666376]
[1732190508051,6.42336658,240.08,240.03,14.98666376]
[1732190508269,6.42336658,240.08,240.03,17.90286376]
[1732190508851,6.42336658,240.1,240.03,25.19356376]
[1732190509647,6.42336658,240.09,240.03,25.19356376]
[1732190509979,6.42336658,240.09,240.05,14.98666376]
[1732190510348,6.42336658,240.11,240.07,14.98666376]
[1732190510604,6.42336658,240.12,240.09,14.98666376]
[1732190510781,6.42336658,240.12,240.11,14.98666376]
[1732190511275,6.42336658,240.13,240.11,14.98666376]
[1732190513287,3.06013461,240.12,240.1,14.98666376]
[1732190513454,6.42529963,240.13,240.11,14.98666376]
[1732190513653,3.06022474,240.12,240.11,14.98666376]
[1732190513859,3.06022474,240.12,240.08,14.98666376]
[1732190514061,6.42529963,240.15,240.1,14.98666376]
[1732190514062,3.06022474,240.11,240.1,14.98666376]
[1732190515471,3.06022474,240.11,240.1,17.90206376]
[1732190515779,6.42529963,240.18,240.1,25.19066376]
[1732190515987,3.05865452,240.17,240.15,14.98666376]
[1732190516289,3.05865452,240.16,240.15,14.98666376]
[1732190517476,3.05865452,240.16,240.15,17.90146376]
[1732190521278,3.05865452,240.16,240.15,41.67834776]
[1732190521484,3.05865452,240.16,240.15,80.24064776]
[1732190521651,6.42529963,240.22,240.15,80.24064776]
[1732190521652,3.05865452,240.21,240.15,87.52774776]
[1732190521858,6.42529963,240.22,240.2,14.98666376]
[1732190522074,7.92691964,240.21,240.15,48.7642]
[1732190522266,7.92691964,240.2,240.17,14.98666376]
[1732190522465,7.92691964,240.19,240.17,14.98666376]
[1732190522770,7.92691964,240.18,240.17,14.98666376]
[1732190522971,7.92691964,240.18,240.12,2.9151]
[1732190523170,3.04900968,240.17,240.1,14.98666376]
[1732190523366,3.04900968,240.16,240.1,14.98666376]
[1732190523566,3.04900968,240.15,240.1,14.98666376]
[1732190523760,3.04900968,240.14,240.06,14.98666376]
[1732190523966,0.5,240.17,240.04,41.62816376]
[1732190523967,18.03567344,240.13,240.04,41.62816376]
[1732190524165,3.04900968,240.12,240.04,17.90276376]
[1732190524367,3.04900968,240.11,240.04,17.90276376]
[1732190524563,3.04900968,240.1,240.04,17.90276376]
[1732190524772,3.04900968,240.09,240.04,17.90276376]
[1732190524973,3.04900968,240.08,240.06,14.98666376]
[1732190525174,3.04900968,240.07,240.06,14.98666376]
[1732190525382,3.04539826,240.07,240.06,14.98666376]
[1732190525875,3.04539826,240.07,240.06,58.76354776]
[1732190526264,14.98666376,240.23,240.07,43.776884]
[1732190526453,4.163,240.21,240.07,43.776884]
[1732190526652,4.163,240.21,240.14,14.98666376]
[1732190526853,19.14906376,240.25,240.14,2.9149]
[1732190527165,4.1624,240.25,240.18,14.98666376]
[1732190528988,27.1264,240.27,240.2,14.98666376]
[1732190529282,4.1621,240.27,240.2,14.98666376]
[1732190529489,4.1617,240.29,240.22,14.98666376]
[1732190529690,10.57899153,240.29,240.22,14.98666376]
[1732190530493,10.57899153,240.29,240.24,14.98666376]
[1732190531275,6.41729153,240.29,240.26,14.98666376]
[1732190532179,4.86918456,240.28,240.26,14.98666376]
[1732190532374,6.41729153,240.29,240.26,14.98666376]
[1732190532375,4.86918456,240.27,240.26,14.98666376]
[1732190533374,4.8676184,240.27,240.26,14.98666376]
[1732190534197,6.41729153,240.29,240.26,14.98666376]
[1732190534801,4.1609,240.33,240.28,14.98666376]
[1732190534992,4.1607,240.35,240.28,14.98666376]
[1732190535891,14.98666376,240.37,240.32,14.98666376]
[1732190535892,4.1603,240.37,240.32,14.98666376]
[1732190536469,4.16,240.39,240.32,14.98666376]
[1732190536668,10.57679153,240.42,240.36,14.98666376]
[1732190536893,4.1595,240.42,240.36,14.98666376]
[1732190537076,4.1595,240.42,240.36,7.50696305]
[1732190537275,14.98666376,240.41,240.34,14.98666376]
[1732190537474,14.98666376,240.39,240.32,34.98666376]
[1732190537867,14.98666376,240.41,240.32,34.98666376]
[1732190538495,3.03968754,240.4,240.32,34.98666376]
[1732190538693,3.03968754,240.39,240.32,34.98666376]
[1732190538877,7.19968754,240.38,240.32,34.98666376]
[1732190539079,3.03968754,240.37,240.32,34.98666376]
[1732190539290,3.03968754,240.36,240.32,34.98666376]
[1732190539485,3.03968754,240.35,240.32,14.98666376]
[1732190539669,3.03968754,240.34,240.32,14.98666376]
[1732190539872,3.03968754,240.33,240.32,14.98666376]
[1732190540069,3.03968754,240.33,240.28,14.98666376]
[1732190540275,3.03968754,240.32,240.24,14.98666376]
[1732190540500,3.03968754,240.31,240.24,14.98666376]
[1732190540676,3.03968754,240.3,240.24,14.98666376]
[1732190540874,3.03968754,240.29,240.24,14.98666376]
[1732190541097,3.03968754,240.28,240.2,14.98666376]
[1732190541304,3.03968754,240.27,240.2,14.98666376]
[1732190541474,3.03968754,240.26,240.22,14.98666376]
[1732190541801,3.03968754,240.25,240.22,14.98666376]
[1732190541989,3.03968754,240.24,240.22,14.98666376]
[1732190542188,3.03968754,240.23,240.22,14.98666376]
[1732190542503,19.14796376,240.31,240.23,8.7416]
[1732190542892,4.1613,240.31,240.24,14.98666376]
[1732190543204,4.1613,240.31,240.23,8.7416]
[1732190543205,4.1613,240.31,240.26,14.98666376]
[1732190543377,4.161,240.33,240.26,14.98666376]
[1732190543582,19.14766376,240.33,240.26,14.98666376]
[1732190544096,19.14766376,240.33,240.24,14.98666376]
[1732190544799,23.91281107,240.32,240.24,23.91281107]
[1732190544998,4.1612,240.31,240.24,23.91281107]
[1732190545199,23.91281107,240.28,240.2,23.91281107]
[1732190546282,4.1619,240.27,240.2,23.91281107]
[1732190546483,23.91281107,240.26,240.18,23.91281107]
[1732190547303,23.776884,240.25,240.17,20.0]
[1732190547876,23.91281107,240.24,240.17,20.0]
[1732190548304,4.1625,240.24,240.17,20.0]
[1732190549507,25.1509,240.3,240.18,23.91281107]
[1732190549679,23.91281107,240.28,240.18,23.91281107]
[1732190550405,4.1619,240.27,240.18,26.41081107]
[1732190550896,23.91281107,240.26,240.18,26.41081107]
[1732190551274,23.91281107,240.23,240.17,20.0]
[1732190551488,23.91281107,240.21,240.12,23.91281107]
[1732190551684,23.91281107,240.19,240.12,23.91281107]
[1732190552082,23.91281107,240.21,240.12,23.91281107]
[1732190552302,38.844984,240.25,240.13,23.91281107]
[1732190552505,23.91281107,240.21,240.13,23.91281107]
[1732190552709,23.91281107,240.21,240.14,20.0]
[1732190553006,4.1631,240.2,240.14,20.0]
[1732190553186,4.1631,240.2,240.15,23.91281107]
[1732190553593,23.91281107,240.25,240.17,23.91281107]
[1732190553778,28.07511107,240.25,240.17,23.91281107]
[1732190554089,4.1623,240.25,240.19,23.91281107]
[1732190554799,4.162,240.27,240.21,23.91281107]
[1732190554980,4.162,240.27,240.19,23.91281107]
[1732190555178,28.07481107,240.27,240.19,23.91281107]
[1732190555620,28.07481107,240.27,240.19,26.41081107]
[1732190556593,4.162,240.27,240.19,26.41081107]
[1732190556998,4.162,240.27,240.19,23.91281107]
[1732190557202,28.07481107,240.27,240.19,23.91281107]
[1732190557390,28.07481107,240.27,240.19,26.41081107]
[1732190557888,6.41729153,240.22,240.19,6.19903503]
[1732190558091,6.41729153,240.23,240.19,3.70103503]
[1732190558785,6.41729153,240.23,240.21,23.91281107]
[1732190559097,50.82006615,240.3,240.21,26.41051107]
[1732190559098,6.41729153,240.26,240.21,26.41051107]
[1732190559697,6.41729153,240.26,240.23,23.91281107]
[1732190560306,6.41729153,240.27,240.25,23.91281107]
[1732190560483,6.41729153,240.29,240.25,23.91281107]
[1732190561385,6.41729153,240.3,240.25,23.91281107]
[1732190562117,6.41729153,240.29,240.23,23.91281107]
[1732190562691,6.41729153,240.28,240.23,23.91281107]
[1732190563217,10.57909153,240.28,240.23,23.91281107]
[1732190563900,4.1618,240.28,240.23,23.91281107]
[1732190564700,4.1618,240.28,240.24,14.94487878]
[1732190564916,6.41729153,240.31,240.26,20.0]
[1732190565086,6.41729153,240.32,240.3,14.94487878]
[1732190565284,10.57799153,240.34,240.3,14.94487878]
[1732190565712,6.41729153,240.34,240.3,14.94487878]
[1732190565889,10.57789153,240.35,240.3,14.94487878]
[1732190566089,4.1606,240.35,240.3,14.94487878]
[1732190566791,6.41729153,240.39,240.35,20.0]
[1732190567015,6.41729153,240.41,240.38,14.94487878]
[1732190567206,6.41729153,240.41,240.35,20.0]
[1732190567207,6.41729153,240.44,240.4,7.46675317]
[1732190567516,6.41729153,240.45,240.42,14.94487878]
[1732190567715,6.41729153,240.46,240.42,14.94487878]
[1732190567899,6.41729153,240.47,240.42,14.94487878]
[1732190568091,6.41729153,240.46,240.44,14.94487878]
[1732190568291,12.83458307,240.5,240.44,14.94487878]
[1732190568292,6.41729153,240.48,240.44,14.94487878]
[1732190568492,6.41729153,240.47,240.44,14.94487878]
[1732190568989,6.41729153,240.46,240.44,14.94487878]
[1732190569299,6.41729153,240.47,240.44,14.94487878]
[1732190569623,6.41729153,240.47,240.43,20.0]
[1732190569910,4.1584,240.48,240.4,14.94487878]
[1732190569911,10.57569153,240.48,240.4,14.94487878]
[1732190570216,10.57569153,240.48,240.41,20.0]
[1732190570517,4.1584,240.48,240.41,20.0]
[1732190571015,4.1584,240.48,240.42,14.94487878]
[1732190571316,6.41729153,240.48,240.44,14.94487878]
[1732190571614,6.41729153,240.49,240.44,14.94487878]
[1732190572213,6.41729153,240.5,240.45,20.0]
[1732190572390,10.57529153,240.5,240.45,20.0]
[1732190573094,4.158,240.5,240.45,20.0]
[1732190573395,4.158,240.5,240.44,14.94487878]
[1732190574602,4.158,240.5,240.45,20.0]
[1732190574917,10.57529153,240.5,240.45,20.0]
[1732190575303,10.57529153,240.5,240.41,2.4957]
[1732190575304,6.41729153,240.51,240.48,14.94487878]
[1732190575614,6.41729153,240.52,240.5,14.94487878]
[1732190575791,10.57439153,240.55,240.51,20.0]
[1732190575998,10.57439153,240.55,240.53,14.94487878]
[1732190576186,4.1571,240.55,240.53,14.94487878]
[1732190577389,10.57439153,240.55,240.53,14.94487878]
[1732190577590,10.57439153,240.55,240.51,34.94487878]
[1732190577792,10.57439153,240.55,240.51,14.94487878]
[1732190577999,4.1571,240.55,240.51,14.94487878]
[1732190578199,14.94487878,240.59,240.51,14.94487878]
[1732190578200,4.1568,240.57,240.51,14.94487878]
[1732190579919,19.10167878,240.57,240.49,14.94487878]
[1732190580094,14.94487878,240.53,240.45,14.94487878]
[1732190580415,14.94487878,240.49,240.41,14.94487878]
[1732190581391,4.1583,240.48,240.41,14.94487878]
[1732190581596,14.94487878,240.47,240.39,14.94487878]
[1732190581809,14.94487878,240.47,240.4,20.0]
[1732190582310,4.1583,240.48,240.4,20.0]
[1732190583138,4.1583,240.48,240.41,14.94487878]
[1732190583307,4.1583,240.48,240.42,20.0]
[1732190586732,4.1574,240.53,240.45,14.94487878]
[1732190588112,25.33807878,240.54,240.45,14.94487878]
[1732190589106,29.49537878,240.54,240.45,14.94487878]
[1732190589510,29.49537878,240.54,240.47,14.94487878]
[1732190589511,4.1573,240.54,240.47,14.94487878]
[1732190589820,4.1573,240.54,240.5,20.0]
[1732190590511,4.1566,240.58,240.51,14.94487878]
[1732190592906,14.94487878,240.57,240.5,20.0]
[1732190593107,14.94487878,240.53,240.46,20.0]
[1732190593521,14.94487878,240.57,240.49,14.94487878]
[1732190594133,14.94487878,240.55,240.46,20.0]
[1732190594426,14.94487878,240.55,240.45,14.94487878]
[1732190594637,14.94487878,240.55,240.46,20.0]
[1732190594824,14.94487878,240.55,240.47,0.52370226]
[1732190595334,4.1573,240.54,240.47,0.52370226]
[1732190596334,4.1564,240.59,240.51,14.94487878]
[1732190597319,19.10127878,240.59,240.51,14.94487878]
[1732190598420,14.94487878,240.56,240.43,4.90925417]
[1732190598621,14.94487878,240.51,240.42,14.94487878]
[1732190599628,4.158,240.5,240.42,14.94487878]
[1732190600039,4.158,240.5,240.38,14.94487878]
[1732190600040,14.94487878,240.47,240.38,14.94487878]
[1732190600222,14.94487878,240.43,240.29,11.2786]
[1732190600426,42.5646,240.5,240.32,14.94487878]
[1732190600427,14.94487878,240.41,240.32,14.94487878]
[1732190601748,4.1597,240.4,240.32,14.94487878]
[1732190602533,3.06623965,240.39,240.32,14.94487878]
[1732190602730,3.06623965,240.38,240.33,23.89273118]
[1732190602944,3.06623965,240.37,240.34,20.0]
[1732190603249,3.06623965,240.37,240.29,17.5209]
[1732190603250,3.06623965,240.36,240.24,8.88030623]
[1732190603472,3.06623965,240.35,240.27,23.89273118]
[1732190603626,3.06623965,240.34,240.27,23.89273118]
[1732190603824,3.06623965,240.33,240.29,23.89273118]
[1732190604041,3.06623965,240.32,240.31,23.89273118]
[1732190604648,3.06623965,240.32,240.31,43.89273118]
[1732190606631,3.06623965,240.32,240.2,6.2447]
[1732190606632,7.22733965,240.32,240.2,6.2447]
[1732190606830,23.89273118,240.28,240.19,23.89273118]
[1732190607032,23.89273118,240.26,240.17,23.89273118]
[1732190607232,7.22853965,240.25,240.17,23.89273118]
[1732190607446,3.06623965,240.24,240.17,23.89273118]
[1732190607730,3.06623965,240.23,240.17,26.39083118]
[1732190607929,4.1623,240.25,240.19,23.89273118]
[1732190608126,4.1623,240.25,240.2,20.0]
[1732190608330,4.1617,240.29,240.21,23.89273118]
[1732190608554,23.89273118,240.32,240.25,23.89273118]
[1732190609855,4.1612,240.31,240.25,23.89273118]
[1732190610257,4.1612,240.31,240.23,23.89273118]
[1732190610935,23.89273118,240.28,240.19,23.89273118]
[1732190611133,23.89273118,240.26,240.2,20.0]
[1732190611338,23.89273118,240.28,240.22,20.0]
[1732190611532,23.89273118,240.3,240.22,20.0]
[1732190612357,12.86791198,240.25,240.17,2.4982]
[1732190612554,6.43396102,240.22,240.21,23.89273118]
[1732190613247,23.89273118,240.3,240.21,23.89273118]
[1732190613460,4.1616,240.29,240.21,23.89273118]
[1732190614742,4.1616,240.29,240.23,23.89273118]
[1732190615338,2.45091829,240.28,240.23,23.89273118]
[1732190615540,2.45091829,240.27,240.23,23.89273118]
[1732190615746,2.45091829,240.26,240.23,23.89273118]
[1732190616032,2.45091829,240.25,240.23,23.89273118]
[1732190616234,4.1613,240.31,240.24,23.89273118]
[1732190616462,2.44986122,240.3,240.26,23.89273118]
[1732190616661,2.44986122,240.29,240.26,23.89273118]
[1732190616954,2.44986122,240.28,240.26,23.89273118]
[1732190617166,2.44986122,240.27,240.26,23.89273118]
[1732190618344,2.44801522,240.27,240.26,23.89273118]
[1732190618664,4.89583866,240.27,240.24,23.89273118]
[1732190619036,2.44782344,240.26,240.24,23.89273118]
[1732190619241,2.44782344,240.25,240.24,23.89273118]
[1732190620049,2.44782344,240.25,240.24,94.05984636]
[1732190620253,2.44801522,240.27,240.26,43.776884]
[1732190620457,2.44801522,240.27,240.26,67.66961518]
[1732190621647,4.1597,240.4,240.37,23.89273118]
[1732190622058,4.1592,240.43,240.37,23.89273118]
[1732190622248,6.43396102,240.42,240.37,23.89273118]
[1732190622460,6.43396102,240.41,240.37,23.89273118]
[1732190623857,4.1597,240.4,240.33,23.89273118]
[1732190624057,23.89273118,240.37,240.29,23.89273118]
[1732190624282,30.3266922,240.37,240.29,23.89273118]
[1732190624847,23.89273118,240.37,240.27,9.46067984]
[1732190625570,23.89273118,240.33,240.25,23.89273118]
[1732190626175,4.1611,240.32,240.25,23.89273118]
[1732190627877,4.1611,240.32,240.27,23.89273118]
[1732190628467,4.1611,240.32,240.25,23.89273118]
[1732190629349,10.4021,240.34,240.25,23.89273118]
[1732190630077,10.4021,240.34,240.16,0.5]
[1732190630078,23.89273118,240.27,240.07,8.7473]
[1732190630251,23.89273118,240.24,240.14,23.89273118]
[1732190630445,23.89273118,240.23,240.15,23.89273118]
[1732190630643,14.95553199,240.24,240.16,14.95553199]
[1732190631172,23.776884,240.22,240.07,6.2481]
[1732190631468,4.1626,240.23,240.17,14.95553199]
[1732190631966,4.1626,240.23,240.15,14.95553199]
[1732190632347,4.163,240.21,240.13,14.95553199]
[1732190632743,4.163,240.21,240.13,23.93347665]
[1732190633375,4.163,240.21,240.15,23.93347665]
[1732190634366,10.4066,240.23,240.15,23.93347665]
[1732190634673,10.4066,240.23,240.17,23.93347665]
[1732190634674,4.1626,240.23,240.17,23.93347665]
[1732190635382,4.1626,240.23,240.15,23.93347665]
[1732190638276,23.93347665,240.22,240.15,23.93347665]
[1732190638776,4.163,240.21,240.13,23.93347665]
[1732190638957,4.163,240.21,240.14,20.0]
[1732190639663,4.163,240.21,240.13,23.93347665]
[1732190640081,4.163,240.21,240.19,23.93347665]
[1732190640252,4.1618,240.28,240.2,23.93347665]
[1732190640577,4.1618,240.28,240.23,23.93347665]
[1732190640773,10.4044,240.29,240.23,23.93347665]
[1732190640984,10.4044,240.29,240.21,23.93347665]
[1732190643388,34.33787665,240.29,240.21,23.93347665]
[1732190644257,38.49947665,240.29,240.21,23.93347665]
[1732190644764,43.776884,240.22,240.06,23.93347665]
[1732190644969,23.93347665,240.14,240.04,23.93347665]
[1732190645388,43.776884,240.22,240.06,23.93347665]
[1732190645581,23.93347665,240.17,240.08,23.93347665]
[1732190646465,4.1638,240.16,240.08,23.93347665]
[1732190646864,4.1638,240.16,240.08,26.01607665]
[1732190647177,4.1638,240.16,240.09,20.0]
[1732190647571,4.1636,240.18,240.11,20.0]
[1732190647782,23.93347665,240.21,240.12,23.93347665]
[1732190647965,4.1633,240.2,240.13,20.0]
[1732190653278,4.1633,240.2,240.11,20.0]
[1732190653482,23.93347665,240.19,240.09,20.0]
[1732190653678,30.36743767,240.19,240.09,20.0]
[1732190653876,23.93347665,240.17,240.09,20.0]
[1732190654570,4.1638,240.16,240.09,20.0]
[1732190654775,4.1638,240.16,240.08,20.0]
[1732190655084,6.43396102,240.19,240.11,14.96453547]
[1732190655285,4.1635,240.19,240.13,14.96453547]
[1732190655586,14.96453547,240.15,239.97,7.2924]
[1732190655883,14.96453547,240.09,239.99,14.96453547]
[1732190656090,21.39849649,240.09,239.99,14.96453547]
[1732190656388,14.96453547,240.07,239.97,20.17343547]
[1732190656688,4.1656,240.06,239.98,23.96252548]
[1732190657563,28.12812548,240.06,239.96,54.14252548]
[1732190657971,23.96252548,240.04,239.94,23.96252548]
[1732190658479,23.96252548,240.02,239.94,23.96252548]
[1732190658684,4.1664,240.01,239.94,23.96252548]
[1732190659967,4.1664,240.01,239.96,23.96252548]
[1732190660576,6.40825063,239.99,239.97,23.96252548]
[1732190661673,4.1667,240.0,239.97,3.7319841]
[1732190662592,4.1662,240.03,239.97,23.7319841]
[1732190662798,4.1662,240.03,239.99,23.96252548]
[1732190663588,4.1656,240.06,239.99,23.96252548]
[1732190664183,4.1656,240.06,240.0,20.0]
[1732190665487,4.1656,240.06,240.01,23.96252548]
[1732190666289,4.1648,240.11,240.05,23.96252548]
[1732190666476,4.1642,240.14,240.1,23.96252548]
[1732190667693,4.1637,240.17,240.1,23.96252548]
[1732190668077,4.1637,240.17,240.08,23.96252548]
[1732190668571,4.1637,240.17,240.1,23.96252548]
[1732190669387,4.1637,240.17,240.11,20.0]
[1732190669711,6.40825063,240.19,240.12,23.96252548]
[1732190669712,4.1633,240.19,240.12,23.96252548]
[1732190669993,4.1633,240.19,240.1,23.96252548]
[1732190670189,4.1633,240.19,240.11,20.0]
[1732190670980,4.1633,240.19,240.1,23.96252548]
[1732190671194,4.1633,240.19,240.14,23.96252548]
[1732190671489,10.57155063,240.19,240.14,23.96252548]
[1732190671900,6.40825063,240.18,240.14,23.96252548]
[1732190672070,4.1633,240.19,240.14,23.96252548]
[1732190673792,4.1633,240.19,240.12,23.96252548]
[1732190673993,6.40825063,240.21,240.17,23.96252548]
[1732190674193,6.40825063,240.28,240.2,20.0]
[1732190674393,6.40825063,240.29,240.27,23.96252548]
[1732190674694,6.40825063,240.28,240.27,23.96252548]
[1732190674884,6.40825063,240.29,240.27,23.96252548]
[1732190675071,6.40825063,240.3,240.27,23.96252548]
[1732190675267,6.40825063,240.3,240.29,23.96252548]
[1732190675472,6.40825063,240.31,240.29,23.96252548]
[1732190675894,6.40825063,240.33,240.3,20.0]
[1732190676095,6.40825063,240.33,240.32,23.96252548]
[1732190676274,6.40825063,240.34,240.32,23.96252548]